Cogmind - Beta 13 @@@ ROGUE MODE // 2024.04.24 @ 04:16:05 Player: szymekc Result: Destroyed by AG-73770 with Assembled Focal Cannon Performance ------------- Evolutions (4) 2000 Regions Visited (14) 2800 Robots Destroyed (164) 820 Value Destroyed (6648) 6648 Prototype IDs (41) 820 Alien Tech Used (0) 0 Bonus (748) 748 TOTAL SCORE: 13836 Bonus ------- High Alert Combat Kills 73 Follower Combat Kills 74 Entered Garrisons 200 Met Data Miner 300 Met Imprinter 300 Destroyed Z-Imprinter 1000 Friendly Fire -1199 Cogmind --------- Core Integrity 0/850 Matter 300/300 Energy 700/700 System Corruption 10% Temperature Cool (6) Movement Hovering (130) Ox1 Location -6/Deep Caves Parts ------- > --- POWER (1) -------- Zionite Light DM Reactor > --- PROPULSION (5) --- Zionite Glidesys I > --- UTILITY (6) ------ Improved Heat Sink Experimental Heat Sink Zionite Biocell Enhanced Optical Array Zionite Weapon Casing Zionite Weapon Casing > --- WEAPON (3) ------- Shock Maul > --- INVENTORY (5) ---- Zionite Light DM Reactor Improved Reaction Control System Zionite Light Carapace Powered Cannon Peak State ------------ > --- POWER ------------ Zionite Light DM Reactor > --- PROPULSION ------- Flexi-carbon Leg Gravmag System > --- UTILITY ---------- High-capacity Storage Unit Experimental Reaction Control System Zionite Weapon Casing Zionite Light Carapace Advanced Drone Bay > --- WEAPON ----------- Wave Gun Neutron Cannon Magnetic Acceleration Cannon > --- INVENTORY -------- Energy Well Large Matter Pod Enhanced Optical Array Hardlight Generator Force Field Long-range Tractor Beam Heart of Steel Improved Lightning Gun Proton Cannon Proton Cannon Powered Cannon High-powered Shotgun Improved Plasma Cutter Shock Maul CR-A16's Pointy Stick [Rating: 79] Favorites ----------- Power Light Angular Momentum Engine Engine Light Angular Momentum Engine Power Core Neutrino Core Reactor Zionite Light DM Reactor Propulsion Light Treads Treads Light Treads Leg Flexi-carbon Leg Hover Unit Gravmag System Flight Unit Cesium-ion Thruster Utility High-capacity Storage Unit Device Weapon Cycler Storage High-capacity Storage Unit Processor Makeshift Salvage Targeting Computer Hackware Advanced System Shield Protection Scrap Shield Weapon KE Penetrator Energy Gun Wave Gun Energy Cannon Proton Cannon Ballistic Gun KE Penetrator Ballistic Cannon Mass Driver Launcher Rocket Launcher Special Weapon Improved Plasma Cutter Impact Weapon Shock Maul Slashing Weapon Makeshift Axe Build | -11 -10 -10 -8 -8 -7 -7 -7 -7 -6 -6 -6 -6 -6 -6 ------- Run | Yrd Mat Sub Mat Gar Fac Low Low Dat Pro Fac Low Low Zio Dee Slots Evolved 8 | . . . 4 . 2 . . . . 2 . . . . Power . | . . . . . . . . . . . . . . . Propulsion 3 | . . . 2 . . . . . . 1 . . . . Utility 4 | . . . 2 . 1 . . . . 1 . . . . Weapon 1 | . . . . . 1 . . . . . . . . . Parts Attached 283 | 2 13 28 4 28 36 6 13 . 41 36 23 16 7 30 Power 18 | . 3 2 1 2 . . 1 . 3 2 1 . . 3 Engine 10 | . 2 2 1 1 . . . . 2 1 1 . . . Core 6 | . 1 . . 1 . . 1 . 1 1 . . . 1 Reactor 2 | . . . . . . . . . . . . . . 2 Propulsion 43 | 2 1 4 2 4 6 . 3 . 5 6 3 1 1 5 Treads 23 | 2 1 4 2 4 6 . 1 . 1 . 1 . 1 . Leg 15 | . . . . . . . 2 . 4 6 2 1 . . Wheel . | . . . . . . . . . . . . . . . Hover 4 | . . . . . . . . . . . . . . 4 Flight 1 | . . . . . . . . . . . . . . 1 Utility 106 | . 3 6 1 10 15 6 3 . 12 15 9 11 . 15 Device 59 | . 1 1 . 4 7 4 1 . 7 11 6 10 . 7 Storage 7 | . 2 1 . 1 . . . . 1 . . . . 2 Processor 6 | . . . . . 1 . . . . 2 1 1 . 1 Hackware 2 | . . . . . . . 1 . . 1 . . . . Protection 32 | . . 4 1 5 7 2 1 . 4 1 2 . . 5 Artifact . | . . . . . . . . . . . . . . . Weapon 116 | . 6 16 . 12 15 . 6 . 21 13 10 4 6 7 Energy Gun 19 | . 2 3 . 2 5 . 1 . . 1 1 . 2 2 Energy Cannon 13 | . . . . 3 . . 2 . 3 2 . . . 3 Ballistic Gun 35 | . 3 6 . 1 4 . . . 5 6 6 3 1 . Ballistic Cannon 14 | . . 1 . 1 . . . . 6 3 1 . 1 1 Launcher 14 | . 1 6 . 2 . . 1 . 4 . . . . . Special Weapon 3 | . . . . . 1 . . . 1 . . . 1 . Impact Weapon 10 | . . . . . 4 . . . . 1 2 1 1 1 Slashing Weapon 8 | . . . . 3 1 . 2 . 2 . . . . . Piercing Weapon . | . . . . . . . . . . . . . . . Special Melee Weapon . | . . . . . . . . . . . . . . . Unidentified Prototypes 15 | . . . . . 2 . . . 1 3 . 1 . 8 Corrupted Parts 8 | . . . . . . . . . 4 . . . . 4 System Corruption 22 | . . . . . . . . . 12 . . . . 10 Parts Lost 59 | . . 3 . 2 . . 7 . 14 7 9 3 . 14 Power 8 | . . 1 . . . . 1 . 3 1 1 . . 1 Propulsion 17 | . . . . 1 . . 2 . 1 1 3 3 . 6 Utility 23 | . . . . 1 . . 2 . 7 2 4 . . 7 Weapon 11 | . . 2 . . . . 2 . 3 3 1 . . . Highest Loss Streak 8 | . . 1 . 2 . . 7 . 6 5 8 2 . 7 To Critical Strikes 2 | . . . . . . . 1 . . . 1 . . . Average Slot Usage (%) 87 | . 99 85 85 94 99 99 93 76 62 85 97 97 83 78 Engine 4 | . 13 7 9 5 . . . . 1 4 5 6 6 1 Core 3 | . . 5 . 3 7 7 7 7 3 1 . . . . Treads 16 | . 28 28 31 35 29 30 22 . . . 4 1 3 2 Leg 8 | . . . . . . . 3 15 12 21 26 29 13 6 Device 13 | . 13 1 9 10 14 15 14 15 7 12 20 23 26 19 Storage 5 | . 14 1 9 9 7 7 7 7 7 6 6 6 6 4 Processor 2 | . . . . . 5 1 . . . 5 4 6 6 4 Hackware 1 | . . . . . . . 2 7 5 5 . . . . Protection 7 | . . 12 9 11 9 12 13 7 5 7 4 . . 6 Energy Gun 5 | . . 15 . 4 2 7 4 . . . 1 . 5 5 Ballistic Gun 11 | . 27 10 18 1 15 15 12 7 5 8 16 19 10 1 Ballistic Cannon 1 | . . 1 . 3 . . . . 3 6 . . . 2 Naked Turns . | . . . . . . . . . . . . . . . Heaviest Build 99 | 11 30 32 54 79 97 99 99 69 82 86 78 70 76 87 Greatest Support 108 | 40 40 40 80 100 108 108 108 70 70 89 89 87 37 37 Greatest Overweight (x) 9 | . . . . 1 1 . 1 . 1 1 1 1 2 9 Average Overweight (x) . | . . . . . . . . . . . . . 1 1 Largest Inventory Capacity 20 | 8 15 15 15 20 20 20 20 20 20 20 20 20 20 20 Average Capacity 16 | 8 12 6 15 19 20 20 20 20 20 20 20 20 20 13 Most Carried 20 | 6 15 15 15 20 20 20 20 16 19 20 20 20 20 20 Average Carried 15 | 6 9 5 12 18 19 19 18 16 17 17 19 19 19 12 Final Capacity 20 | 8 15 15 15 20 20 20 20 20 20 20 20 20 20 5 Final Carried 20 | 6 15 15 15 20 20 20 16 16 18 20 20 20 20 5 Class Distribution -------------------- 30% | Mutant 19% | Scavenger-Tank 17% | Scavenger-Gunner 12% | Scavenger-Mutant 4% | Subdweller-Mutant 4% | Scavenger-Assassin 3% | Derelict-Mutant Dominant Class ---------------- Mutant | -10/Materials Mutant | -10/Subcaves Subdweller-Mutant | -8/Materials Scavenger-Mutant | -8/Garrison Scavenger-Assassin | -7/Factory Scavenger-Tank | -7/Lower Caves Scavenger-Tank | -7/Lower Caves Mutant | -7/Data Miner Mutant | -6/Proximity Caves Scavenger-Tank | -6/Factory Scavenger-Gunner | -6/Lower Caves Scavenger-Gunner | -6/Lower Caves Scavenger-Gunner | -6/Zion Scavenger-Mutant | -6/Deep Caves Resources | -11 -10 -10 -8 -8 -7 -7 -7 -7 -6 -6 -6 -6 -6 -6 ----------- Run | Yrd Mat Sub Mat Gar Fac Low Low Dat Pro Fac Low Low Zio Dee Matter Collected 7317 | 202 568 791 60 574 626 196 266 . 1016 983 873 523 50 589 Remotely . | . . . . . . . . . . . . . . . Salvage Created 7035 | . 522 858 68 691 562 525 593 . 818 792 1065 248 . 293 Parts 348 | . 43 59 10 33 32 23 28 . 37 25 39 8 . 11 Haulers Intercepted 4 | . 1 . . . 2 . . . . 1 . . . . Recyclers Shooed 1 | . . . . . . . . . . 1 . . . . Parts Field Recycled . | . . . . . . . . . . . . . . . Retrieved Matter . | . . . . . . . . . . . . . . . Parts Self-Destructed 132 | . . 11 . . . 23 16 . 36 . 34 12 . . Prevented 10 | . . 2 . . . . 5 . 2 . 1 . . . Kills | -11 -10 -10 -8 -8 -7 -7 -7 -7 -6 -6 -6 -6 -6 -6 ------- Run | Yrd Mat Sub Mat Gar Fac Low Low Dat Pro Fac Low Low Zio Dee Combat Hostiles Destroyed 152 | . 13 21 1 17 9 10 12 . 25 11 23 5 . 5 Melee 1 | . . . . . . . . . 1 . . . . . Guns 88 | . 13 12 1 1 9 10 7 . 6 3 20 5 . 1 Cannons 30 | . . 1 . 7 . . 2 . 8 8 2 . . 2 AOE 26 | . . 6 . 8 . . 3 . 9 . . . . . Classes Destroyed 21 | . 6 1 1 2 3 1 . . 2 2 . 1 . 2 Worker 1 | . . . . . 1 . . . . . . . . . Builder 1 | . . . . . . . . . . 1 . . . . Hauler 4 | . 1 . . . 2 . . . . 1 . . . . Recycler 1 | . . . . . . . . . . 1 . . . . Operator 1 | . 1 . . . . . . . . . . . . . Drone 2 | . . . . . . . . . 2 . . . . . Watcher 5 | . 1 . 1 . 2 . . . . 1 . . . . Swarmer 35 | . 3 4 . 6 3 1 2 . 6 . 9 1 . . Grunt 58 | . 9 2 . 9 3 7 4 . 7 6 9 2 . . Brawler 5 | . . . . 1 . . . . 2 1 . 1 . . Duelist 3 | . . . . . 1 . . . 1 . 1 . . . Protector 1 | . . . . . . . . . 1 . . . . . Sentry 12 | . . . 1 . 1 1 1 . 1 3 3 1 . . Hunter 6 | . . . . . . 1 1 . 4 . . . . . Programmer 4 | . . . . . 1 . . . 1 1 1 . . . Behemoth 1 | . . . . 1 . . . . . . . . . . Artisan 1 | . . 1 . . . . . . . . . . . . Subdweller 16 | . 1 15 . . . . . . . . . . . . Z-Technician 1 | . . . . . . . . . . . . . . 1 Z-Light 4 | . . . . . . . . . . . . . . 4 Tinkerer 1 | . . . . . . . . . . . . 1 . . Assembled 1 | . . . . . . . . . . . . . . 1 Thug 4 | . . . . . . . 4 . . . . . . . Best Kill Streak 10 | . 4 4 1 6 5 4 7 . 10 2 5 3 . 3 Combat Bots Only 10 | . 3 4 1 6 4 4 7 . 10 2 5 3 . 3 Max Kills in Single Turn 4 | . 2 4 1 3 2 1 3 . 2 1 2 1 . 1 Gunslinging 1 | . 1 . . . 1 . 1 . . . 1 . . . Exploded 4 | . . 4 . 3 . . 3 . 2 . . . . . Melee 1 | . . . . . . . . . 1 . . . . . Uniques/NPCs Destroyed . | . . . . . . . . . . . . . . . Combat | -11 -10 -10 -8 -8 -7 -7 -7 -7 -6 -6 -6 -6 -6 -6 -------- Run | Yrd Mat Sub Mat Gar Fac Low Low Dat Pro Fac Low Low Zio Dee Hostile Shots Fired 976 | . 52 108 4 82 43 34 57 . 173 116 164 62 . 81 Missed 277 | . 12 34 3 24 16 9 15 . 41 29 52 21 . 21 Damage Taken 13179 | . 463 1670 12 1052 325 248 844 . 2712 1648 1717 447 . 2041 Core 1484 | . 99 132 . 72 . 12 46 . 243 125 170 47 . 538 Absorbed by Shields 422 | . . . . . . 83 111 . . . 172 56 . . Redirected to Shielding 309 | . . . . . . . . . 92 . . . . 217 Ignored by Resistances 179 | . . . . . 20 23 59 . . . 77 . . . Core Remaining (%) 62 | 100 . 7 . 86 . . . . 57 . . . . . Volleys Fired 452 | . 47 84 5 56 15 17 23 . 56 44 55 14 . 36 Largest 3 | . 2 2 2 2 3 3 3 . 3 3 3 3 . 3 Hottest 224 | . 40 80 60 145 147 147 150 . 180 180 113 78 . 224 Shots Fired 971 | . 93 157 10 97 42 51 59 . 99 118 149 42 . 54 Gun 677 | . 92 126 10 39 42 51 53 . 21 50 142 42 . 9 Cannon 262 | . . 19 . 50 . . 5 . 68 68 7 . . 45 Launcher 30 | . 1 12 . 8 . . 1 . 8 . . . . . Special 2 | . . . . . . . . . 2 . . . . . Kinetic 686 | . 92 65 10 37 29 34 36 . 67 105 143 42 . 26 Thermal 134 | . . . . 52 13 17 17 . 15 7 6 . . 7 Explosive 30 | . 1 12 . 8 . . 1 . 8 . . . . . Electromagnetic 121 | . . 80 . . . . 5 . 9 6 . . . 21 Robot Hit Streak 32 | . 12 32 23 10 7 6 11 . 10 8 13 8 . 6 Robot Miss Streak 11 | . 2 3 2 2 2 2 2 . 4 4 11 11 . 5 Penetration Max 1 | . . . . . 1 1 . . 1 1 1 . . . Secondary Targets 17 | . 2 . . . 3 3 2 . . . 6 1 . . Max Gunslinging Chain 2 | . 1 . . . 1 1 2 . . . 1 1 . . Shots Hit Robots 632 | . 64 113 4 65 33 33 41 . 57 64 93 29 . 36 Core Hits 324 | . 28 47 2 38 17 20 21 . 42 29 49 18 . 13 Critical Kills 8 | . 1 . . 1 1 . . . . 2 1 1 . 1 Critical Parts Destroyed 12 | . 1 . 1 . 3 1 . . 2 . 3 . . 1 Critical Strikes 33 | . 2 3 1 4 4 3 . . 3 4 4 1 . 4 Burn 2 | . . . . . . 2 . . . . . . . . Meltdown 1 | . . . . 1 . . . . . . . . . . Destroy 13 | . 2 . 1 . 2 1 . . 2 2 2 1 . . Blast 4 | . . . . 1 . . . . . 2 . . . 1 Corrupt 3 | . . 3 . . . . . . . . . . . . Smash 7 | . . . . . 2 . . . . . 2 . . 3 Sever 3 | . . . . 2 . . . . 1 . . . . . Melee Attacks 82 | . . . . 13 31 . 4 . 12 . 9 3 5 5 Impact 52 | . . . . . 30 . . . . . 9 3 5 5 Slashing 30 | . . . . 13 1 . 4 . 12 . . . . . Piercing . | . . . . . . . . . . . . . . . Sneak Attacks 7 | . . . . . 3 . . . . . . 3 . 1 Combat Hostiles . | . . . . . . . . . . . . . . . Follow-up Attacks . | . . . . . . . . . . . . . . . Damage Inflicted 17737 | . 798 1962 86 2619 1051 897 1320 . 2705 2043 2144 775 . 1337 Guns 9103 | . 798 1371 86 606 833 897 961 . 351 765 1890 498 . 47 Cannons 4752 | . . 279 . 910 . . 95 . 1208 1231 172 . . 857 Explosions 2234 | . . 312 . 679 . . 264 . 979 . . . . . Melee 1575 | . . . . 424 218 . . . 141 . 82 277 . 433 Ramming 61 | . . . . . . . . . 14 47 . . . . Kinetic 10094 | . 798 990 86 543 668 592 696 . 1127 1638 1966 498 . 492 Thermal 2402 | . . . . 973 165 305 265 . 336 225 96 . . 37 Explosive 2179 | . . 312 . 679 . . 264 . 924 . . . . . Electromagnetic 1426 | . . 660 . . . . 95 . 163 133 . . . 375 Impact 1010 | . . . . . 218 . . . . . 82 277 . 433 Slashing 565 | . . . . 424 . . . . 141 . . . . . Piercing . | . . . . . . . . . . . . . . . Highest Corruption 23 | . . . . . . . 4 4 23 5 6 6 6 10 Average Corruption 5 | . . . . . . . 4 4 6 2 5 6 6 3 Corruption Purged 2 | . . . . . . . . . 2 . . . . . Corruption Blocked . | . . . . . . . . . . . . . . . Effects 165 | . . . . . . . 10 3 60 10 31 35 2 14 Message Errors 41 | . . . . . . . 4 1 13 1 5 10 1 6 Matter Fused 37 | . . . . . . . 2 1 12 2 5 10 . 5 Heat Flow Errors 25 | . . . . . . . 2 . 13 . 5 3 1 1 Energy Discharges 20 | . . . . . . . 1 . 7 . 5 5 . 2 Parts Fused 2 | . . . . . . . . . . . 2 . . . Data Loss (minor) 18 | . . . . . . . . 1 6 4 3 4 . . Data Loss (major) 11 | . . . . . . . 1 . 6 . 3 1 . . Misfires 5 | . . . . . . . . . 2 2 . 1 . . Alerts 3 | . . . . . . . . . 1 1 1 . . . Weapon Failures 3 | . . . . . . . . . . . 2 1 . . Overload Shots . | . . . . . . . . . . . . . . . Overflow Damage 565 | . . 12 . . 108 . 1 . 58 32 82 26 . 246 Projectiles 131 | . . . . . . . . . 44 32 . . . 55 Explosions 27 | . . 12 . . . . 1 . 14 . . . . . Melee 407 | . . . . . 108 . . . . . 82 26 . 191 Knockbacks 22 | . . 5 . 3 . . . . 5 5 . 1 . 3 Impact 3 | . . . . . . . . . . . . 1 . 2 Kinetic 18 | . . 5 . 3 . . . . 5 4 . . . 1 Secondary 1 | . . . . . . . . . . 1 . . . . Self-Inflicted Damage 214 | . . 45 . 3 . . 62 . 104 . . . . . Shots 7 | . . 2 . 1 . . 1 . 3 . . . . . Rammed . | . . . . . . . . . . . . . . . Targets Rammed 6 | . . . . . . . . . 4 2 . . . . Kicked 6 | . . . . . . . . . 4 2 . . . . Crushed . | . . . . . . . . . . . . . . . Highest Temperature 761 | . 12 . . 337 192 198 242 . 321 390 254 285 131 761 Average Temperature 128 | . 7 . . 143 68 66 81 . 120 141 77 102 86 283 Received Heat Transfer 3794 | . 186 237 . 372 66 110 253 . 642 507 526 415 . 480 Effects 22 | . . . . 5 . . . . 2 3 . . . 12 Shutdowns 2 | . . . . . . . . . . 2 . . . . Energy Bleed 2 | . . . . . . . . . 1 1 . . . . Interference 5 | . . . . 5 . . . . . . . . . . Matter Decay 2 | . . . . . . . . . . . . . . 2 Short Circuit 3 | . . . . . . . . . 1 . . . . 2 Damage (minor) 3 | . . . . . . . . . . . . . . 3 Damage (major) 3 | . . . . . . . . . . . . . . 3 Damage (core) 2 | . . . . . . . . . . . . . . 2 Siege Activations . | . . . . . . . . . . . . . . . Robots Corrupted 6 | . . 2 . . . . . . 1 1 . . . 2 Combat Hostiles 5 | . . 2 . . . . . . 1 . . . . 2 Parts Fried 18 | . . 3 . . 1 . . . 1 2 . 1 . 10 Impact Corruptions 12 | . . . . . 4 . . . . 1 2 1 . 4 Robots Melted 1 | . . . . 1 . . . . . . . . . . Combat Hostiles 1 | . . . . 1 . . . . . . . . . . Parts Melted 3 | . . 1 . 2 . . . . . . . . . . Heat Transferred 2776 | . . . . 1265 259 629 407 . 68 . 148 . . . Parts Sabotaged . | . . . . . . . . . . . . . . . Parts Stolen . | . . . . . . . . . . . . . . . Parts Stripped . | . . . . . . . . . . . . . . . Power Chain Reactions 1 | . . . . . . . . . 1 . . . . . Alert | -11 -10 -10 -8 -8 -7 -7 -7 -7 -6 -6 -6 -6 -6 -6 ------- Run | Yrd Mat Sub Mat Gar Fac Low Low Dat Pro Fac Low Low Zio Dee Peak Influence 560 | . 216 . 53 560 372 . . . . 202 . . . . Initial 294 | . . . . 34 294 . . . . . . . . . Average 156 | . 111 . 34 322 186 . . . . 56 . . . . Maximum Alert Level 2 | . 1 . . 2 1 . . . . 1 . . . . Low Security (%) 71 | 100 74 . 100 39 64 . . . . 94 . . . . Level 1 17 | . 25 . . . 35 . . . . 5 . . . . Level 2 10 | . . . . 59 . . . . . . . . . . Level 3 . | . . . . . . . . . . . . . . . Level 4 . | . . . . . . . . . . . . . . . Level 5 . | . . . . . . . . . . . . . . . High Security . | . . . . . . . . . . . . . . . Max Security . | . . . . . . . . . . . . . . . Squads Dispatched 10 | . 3 . . . 2 . 1 . 1 3 . . . . Investigation 3 | . 2 . . . . . 1 . . . . . . . Extermination 3 | . . . . . 1 . . . . 2 . . . . Reinforcement 3 | . 1 . . . 1 . . . . 1 . . . . Assault 1 | . . . . . . . . . 1 . . . . . Garrison . | . . . . . . . . . . . . . . . Intercept . | . . . . . . . . . . . . . . . Searches Triggered . | . . . . . . . . . . . . . . . Construction Impeded 1 | . . . . . 1 . . . . . . . . . Haulers Reinforced . | . . . . . . . . . . . . . . . Active Scanning Responses . | . . . . . . . . . . . . . . . Cargo Convoy Interrupts 1 | . . . . . . . . . . 1 . . . . Stealth | -11 -10 -10 -8 -8 -7 -7 -7 -7 -6 -6 -6 -6 -6 -6 --------- Run | Yrd Mat Sub Mat Gar Fac Low Low Dat Pro Fac Low Low Zio Dee Distress Signals 3 | . 1 . 1 . 1 . . . . . . . . . Communications Jammed . | . . . . . . . . . . . . . . . Distress Signals . | . . . . . . . . . . . . . . . Times Spotted 187 | . 22 27 2 13 12 11 15 . 28 18 23 6 . 10 Peak Tracking Total 7 | . 5 6 2 3 5 4 7 . 7 3 7 3 . 3 Tactical Retreats 7 | . 1 3 . . . 1 . . . 2 . . . . Traps | -11 -10 -10 -8 -8 -7 -7 -7 -7 -6 -6 -6 -6 -6 -6 ------- Run | Yrd Mat Sub Mat Gar Fac Low Low Dat Pro Fac Low Low Zio Dee Traps Triggered 10 | . . 2 . . 4 . . . . 4 . . . . Indirectly . | . . . . . . . . . . . . . . . Trap Hack Attempts . | . . . . . . . . . . . . . . . Triggered . | . . . . . . . . . . . . . . . Disarmed . | . . . . . . . . . . . . . . . Reprogrammed . | . . . . . . . . . . . . . . . Reused . | . . . . . . . . . . . . . . . Traps Extracted . | . . . . . . . . . . . . . . . Installed . | . . . . . . . . . . . . . . . Triggered 1 | . . . . . . . . . . 1 . . . . Machines | -11 -10 -10 -8 -8 -7 -7 -7 -7 -6 -6 -6 -6 -6 -6 ---------- Run | Yrd Mat Sub Mat Gar Fac Low Low Dat Pro Fac Low Low Zio Dee Machines Disabled 14 | . . 1 . 5 1 . 2 . 1 1 2 . . 1 Max in Single Turn 1 | . . 1 . 1 1 . 1 . 1 1 1 . . . Garrison Relay 1 | . . . . 1 . . . . . . . . . . Machines Repaired . | . . . . . . . . . . . . . . . Machines Dismantled 4 | . . . . . . . . . . . . . 4 . Machines Sabotaged . | . . . . . . . . . . . . . . . Overloaded Fab Kills . | . . . . . . . . . . . . . . . Hacking | -11 -10 -10 -8 -8 -7 -7 -7 -7 -6 -6 -6 -6 -6 -6 --------- Run | Yrd Mat Sub Mat Gar Fac Low Low Dat Pro Fac Low Low Zio Dee Machines Accessed 30 | . 5 2 1 3 5 1 1 4 . 5 2 1 . . Terminals 13 | . 3 . . 3 1 . 1 . . 4 1 . . . Fabricators 1 | . . . . . 1 . . . . . . . . . Repair Stations 1 | . . . . . 1 . . . . . . . . . Recycling Units 5 | . 2 . . . 2 . . . . 1 . . . . Scanalyzers . | . . . . . . . . . . . . . . . Garrison Access 1 | . . . 1 . . . . . . . . . . . Total Hacks 92 | . 17 4 2 4 11 1 6 29 . 11 6 1 . . Successful 64 | . 5 4 1 1 6 1 6 29 . 4 6 1 . . Failed 28 | . 12 . 1 3 5 . . . . 7 . . . . Catastrophic 4 | . . . . 2 1 . . . . 1 . . . . Database Lockouts . | . . . . . . . . . . . . . . . Manual 16 | . 7 . . 1 3 . . . . 5 . . . . Terminals 35 | . 8 . . 4 3 . 6 . . 9 5 . . . Fabricators 1 | . . . . . 1 . . . . . . . . . Repair Stations 2 | . . . . . 2 . . . . . . . . . Recycling Units 16 | . 9 . . . 5 . . . . 2 . . . . Scanalyzers . | . . . . . . . . . . . . . . . Garrison Access 2 | . . . 2 . . . . . . . . . . . Terminal Hacks 56 | . 3 4 . 1 1 1 6 29 . 4 6 1 . . Record 25 | . . 3 . . . . 6 11 . . 5 . . . Part Schematic 10 | . . . . . . . . 9 . 1 . . . . Robot Schematic 6 | . . . . . . . . 6 . . . . . . Robot Analysis 1 | . 1 . . . . . . . . . . . . . Prototype ID Bank 6 | . 2 . . . . . . 3 . 1 . . . . Open Door 3 | . . . . . . 1 . . . . 1 1 . . Branch Access Points 1 | . . . . . . . . . . 1 . . . . Unreport Threat 1 | . . . . . . . . . . 1 . . . . Locate Traps 1 | . . . . . 1 . . . . . . . . . Garrison Registry 1 | . . . . 1 . . . . . . . . . . Derelict Proto ID Bank 1 | . . 1 . . . . . . . . . . . . Fabricator Hacks 1 | . . . . . 1 . . . . . . . . . Network Status 1 | . . . . . 1 . . . . . . . . . Repair Station Hacks 1 | . . . . . 1 . . . . . . . . . Scan Component 1 | . . . . . 1 . . . . . . . . . Recycling Unit Hacks 1 | . . . . . 1 . . . . . . . . . Retrieve Components 1 | . . . . . 1 . . . . . . . . . Scanalyzer . | . . . . . . . . . . . . . . . Garrison Access Hacks 1 | . . . 1 . . . . . . . . . . . Unlock Access 1 | . . . 1 . . . . . . . . . . . Unauthorized Hacks 4 | . 2 . . . 2 . . . . . . . . . Terminals 1 | . . . . . 1 . . . . . . . . . Assimilate 1 | . . . . . 1 . . . . . . . . . Fabricators . | . . . . . . . . . . . . . . . Repair Stations . | . . . . . . . . . . . . . . . Recycling Units 3 | . 2 . . . 1 . . . . . . . . . Mask 1 | . . . . . 1 . . . . . . . . . Tunnel 2 | . 2 . . . . . . . . . . . . . Scanalyzers . | . . . . . . . . . . . . . . . Garrison Access . | . . . . . . . . . . . . . . . Data Cores Recovered 1 | . 1 . . . . . . . . . . . . . Used 1 | . 1 . . . . . . . . . . . . . Hacking Detections 20 | . 5 . 1 3 4 . 1 . . 5 1 . . . Full Trace Events 1 | . . . . . . . 1 . . . . . . . Feedback Events . | . . . . . . . . . . . . . . . Feedback Blocked . | . . . . . . . . . . . . . . . Robot Schematics Acquired 9 | . . . . . . . . 6 . . . . 3 . Robots Built . | . . . . . . . . . . . . . . . Authchips . | . . . . . . . . . . . . . . . Time . | . . . . . . . . . . . . . . . Total Robot Build Rating . | . . . . . . . . . . . . . . . Part Schematics Acquired 21 | . . . . . . . . 9 . 1 . . 11 . Parts Built . | . . . . . . . . . . . . . . . Authchips . | . . . . . . . . . . . . . . . Time . | . . . . . . . . . . . . . . . Total Part Build Rating . | . . . . . . . . . . . . . . . Parts Repaired . | . . . . . . . . . . . . . . . Time . | . . . . . . . . . . . . . . . Parts Recycled . | . . . . . . . . . . . . . . . Recycled Matter . | . . . . . . . . . . . . . . . Retrieved Matter . | . . . . . . . . . . . . . . . Retrieved Components 1 | . . . . . 1 . . . . . . . . . Parts Scanalyzed . | . . . . . . . . . . . . . . . Part Schematics Acquired . | . . . . . . . . . . . . . . . Parts Damaged . | . . . . . . . . . . . . . . . Bothacking | -11 -10 -10 -8 -8 -7 -7 -7 -7 -6 -6 -6 -6 -6 -6 ------------ Run | Yrd Mat Sub Mat Gar Fac Low Low Dat Pro Fac Low Low Zio Dee Used RIF Installer . | . . . . . . . . . . . . . . . Robots Hacked . | . . . . . . . . . . . . . . . Non-combat . | . . . . . . . . . . . . . . . Combat . | . . . . . . . . . . . . . . . Robot Hacks Applied . | . . . . . . . . . . . . . . . Relay Couplers Released 5 | . . . . 5 . . . . . . . . . . Machine Destruction 5 | . . . . 5 . . . . . . . . . . Fabnet Peak Effective % . | . . . . . . . . . . . . . . . Robots Rewired 1 | . . . . . . . . . 1 . . . . . Allies Hacked . | . . . . . . . . . . . . . . . Hacks Repelled . | . . . . . . . . . . . . . . . Allies | -11 -10 -10 -8 -8 -7 -7 -7 -7 -6 -6 -6 -6 -6 -6 -------- Run | Yrd Mat Sub Mat Gar Fac Low Low Dat Pro Fac Low Low Zio Dee Total Allies 6 | . . . . . 1 . . . 2 . . . 3 . Largest Group 3 | . . . . . 1 . . . 1 . . . 3 3 Highest-Rated Group 96 | . . . . . 26 . . . 96 . . . 85 85 Highest-Rated Ally 96 | . . . . . 26 . . . 96 . . . 51 51 Total Orders 13 | . . . . . . 3 . . 10 . . . . . STAY 2 | . . . . . . 1 . . 1 . . . . . EXPLORE 9 | . . . . . . 2 . . 7 . . . . . RETURN 2 | . . . . . . . . . 2 . . . . . Ally Attacks 39 | . . . . . . . . . 11 . . . . 28 Total Damage 695 | . . . . . . . . . 303 . . . . 392 Kills 8 | . . . . . . . . . 1 . . . . 7 Allies Corrupted . | . . . . . . . . . . . . . . . Allies Melted 1 | . . . . . . . . . 1 . . . . . Intel | -11 -10 -10 -8 -8 -7 -7 -7 -7 -6 -6 -6 -6 -6 -6 ------- Run | Yrd Mat Sub Mat Gar Fac Low Low Dat Pro Fac Low Low Zio Dee Robot Analysis Total 1 | . 1 . . . . . . . . . . . . . Derelict Logs Recovered 10 | . . 2 . . . 1 2 . 1 . 2 1 1 . Drone Launches 6 | . . . . . . 2 . . 4 . . . . . Drone Recoveries 6 | . . . . . . 2 . . 4 . . . . . Exploration | -11 -10 -10 -8 -8 -7 -7 -7 -7 -6 -6 -6 -6 -6 -6 ------------- Run | Yrd Mat Sub Mat Gar Fac Low Low Dat Pro Fac Low Low Zio Dee Turns Passed 19442 | 11 864 3909 153 863 1504 1599 1332 106 2036 1307 1378 1300 1819 1261 Spaces Moved 10549 | 7 403 2195 64 363 773 916 785 79 1034 774 807 951 874 524 Core . | . . . . . . . . . . . . . . . Treads 5280 | 3 403 2195 64 363 773 916 563 . . . . . . . Legs 4913 | 4 . . . . . . 222 79 1034 774 807 951 874 168 Wheels . | . . . . . . . . . . . . . . . Hover 356 | . . . . . . . . . . . . . . 356 Flight . | . . . . . . . . . . . . . . . Fastest Speed 56 | 120 160 160 160 160 160 160 135 135 130 122 122 122 195 56 Average Speed 158 | 137 160 160 160 161 160 160 154 135 164 130 142 124 196 199 Slowest Speed 610 | 160 160 160 160 253 246 160 240 135 250 209 193 195 265 610 Overloaded Moves . | . . . . . . . . . . . . . . . Propulsion Burnouts . | . . . . . . . . . . . . . . . Robots Hopped 2 | . . . . . . . . . . . . 2 . . Cave-ins Triggered 1 | . . . . . . . 1 . . . . . . . Exploration Rate (%) 61 | 2 60 92 8 56 18 98 78 68 99 17 83 95 85 64 Regions Visited 14 Branch Regions 9 Pre-discovered Areas 10 | . 2 1 . . . 1 2 1 . . . 1 2 . Known Exits Taken 4 | . . . 1 . 1 . . . 1 1 . . . . Unknown Exits Taken 9 | 1 1 1 . . . 1 1 1 . . 1 1 1 . Scrap Searched 29 | . . 11 . . . 5 4 . 3 . 2 2 2 . Spaces Dug 80 | . . 29 . 2 10 . 3 . 33 . 3 . . . Terrain Destroyed 350 | . 6 80 . 33 12 5 18 . 153 30 7 . . 6 Melee 18 | . . . . . 10 . 3 . 2 . 3 . . . Projectile 89 | . . . . 8 2 5 3 . 32 30 3 . . 6 AOE 242 | . 6 80 . 25 . . 12 . 119 . . . . . Terrain Rammed . | . . . . . . . . . . . . . . . Walls Destroyed . | . . . . . . . . . . . . . . . Machines Disabled . | . . . . . . . . . . . . . . . Actions | -11 -10 -10 -8 -8 -7 -7 -7 -7 -6 -6 -6 -6 -6 -6 --------- Run | Yrd Mat Sub Mat Gar Fac Low Low Dat Pro Fac Low Low Zio Dee Total 12323 | 8 536 2430 105 521 946 1016 856 78 1264 991 928 1035 929 680 Wait 600 | . 39 62 25 30 74 70 17 . 86 93 7 36 1 60 Move 10529 | 6 402 2194 63 360 772 915 784 78 1033 773 806 946 873 524 Hop 2 | . . . . . . . . . . . . 2 . . Pick Up 123 | . 18 19 5 14 6 2 6 . 11 19 13 2 2 6 Fast Attach 99 | . 3 9 1 5 15 2 . . 5 16 7 9 3 24 Attach 79 | . . 3 2 4 2 2 11 . 24 12 12 4 1 2 Detach 36 | . . . . . . 2 5 . 16 4 3 4 . 2 Swap 105 | 2 10 16 1 19 19 2 2 . 12 8 4 3 3 4 Drop 147 | . 17 19 3 20 12 4 4 . 3 20 12 12 4 17 Fire 452 | . 47 84 5 56 15 17 23 . 56 44 55 14 . 36 Melee 82 | . . . . 13 31 . 4 . 12 . 9 3 5 5 Ram . | . . . . . . . . . . . . . . . Kick 6 | . . . . . . . . . 4 2 . . . . Crush . | . . . . . . . . . . . . . . . Escape Stasis . | . . . . . . . . . . . . . . . Rewire 1 | . . . . . . . . . 1 . . . . . Trap . | . . . . . . . . . . . . . . . Miscellaneous 62 | . . 24 . . . . . . 1 . . . 37 . Route ------- -11/Scrapyard -10/Materials (discovered 4 exits: [*Mat x2] / [*Min] / *Sub) -10/Subcaves (discovered 3 exits: *Mat x2 / [*Rec]) -8/Materials -8/Garrison (discovered 3 exits: *Fac x3) -7/Factory (discovered 2 exits: *Fac / *Low) -7/Lower Caves -7/Lower Caves (discovered 2 exits: *Fac / *Dat) -7/Data Miner -6/Proximity Caves -6/Factory (discovered 3 exits: [*Fac] / *Low x2) -6/Lower Caves -6/Lower Caves (discovered 2 exits: [*Fac] / *Zio) -6/Zion (discovered 2 exits: [*Dee] / [*Pro]) -6/Deep Caves History --------- Turn | Location | Event 1 | -11/Scrapyard | Discovered new exit (range 3) 12 | -11/Scrapyard | Entered Materials 176 | -10/Materials | Discovered new exit (range 16) 325 | -10/Materials | Build established: Mutant 364 | -10/Materials | Discovered new exit (range 12) 482 | -10/Materials | Discovered new exit (range 9) 512 | -10/Materials | Derelicts attacked the area 746 | -10/Materials | Discovered new exit (range 14) 876 | -10/Materials | Entered Subcaves 1251 | -10/Subcaves | Shifting Twisted Machinery released Enh. Flamer 1261 | -10/Subcaves | Shifting Twisted Machinery released Piercing Trap 1418 | -10/Subcaves | Learned location of Zion (-6) 1418 | -10/Subcaves | Met a Zionite searching for "candidates" 1521 | -10/Subcaves | Discovered new exit (range 5) 1671 | -10/Subcaves | Visited Clippyterm 1675 | -10/Subcaves | Learned Research security intel 2037 | -10/Subcaves | Discovered new exit (range 14) 2182 | -10/Subcaves | Learned Materials emergency access door positions 2672 | -10/Subcaves | Shifting Twisted Machinery released Mak. Leg 2681 | -10/Subcaves | Shifting Twisted Machinery released Spk. Treads 2754 | -10/Subcaves | Ambushed by Subdweller buried in earth 2892 | -10/Subcaves | Ambushed by angry Subdweller bent on revenge 2904 | -10/Subcaves | Core integrity fell below 50% 3262 | -10/Subcaves | Learned Materials terminal intel 3416 | -10/Subcaves | Ambushed by Subdweller buried in earth 3592 | -10/Subcaves | Discovered new exit (range 13) 3762 | -10/Subcaves | Core integrity fell below 20% 4007 | -10/Subcaves | Ambushed by Subdweller buried in earth 4030 | -10/Subcaves | Build established: Subdweller-Mutant 4103 | -10/Subcaves | Visited 4L-MR0's lab 4121 | -10/Subcaves | Found Powered Cannon 4688 | -10/Subcaves | Build established: Scavenger-Mutant 4785 | -10/Subcaves | Entered Materials 4785 | -8/Materials | Evolved 4 slots: Propulsion x2, Utility x2 4787 | -8/Materials | Loaded intel: 12 terminal locations 4936 | -8/Materials | Identified exit to Garrison 4938 | -8/Materials | Entered Garrison 4982 | -8/Garrison | Triggered checkpoint 5165 | -8/Garrison | Discovered new exit (range 46) 5165 | -8/Garrison | Discovered new exit (range 57) 5165 | -8/Garrison | Discovered new exit (range 41) 5195 | -8/Garrison | Triggered checkpoint 5279 | -8/Garrison | Triggered checkpoint 5372 | -8/Garrison | Spotted B-75 Beast 5415 | -8/Garrison | Destroyed B-75 Beast 5583 | -8/Garrison | Attempted to access garrison exit controls, blocked by remote lockdown 5678 | -8/Garrison | Triggered checkpoint 5801 | -8/Garrison | Entered Factory 5801 | -7/Factory | Evolved 2 slots: Utility x1, Weapon x1 6024 | -7/Factory | Discovered new exit (range 6) 6034 | -7/Factory | Identified exit to Lower Caves 6498 | -7/Factory | Build established: Scavenger-Assassin 6548 | -7/Factory | Discovered new exit (range 15) 6596 | -7/Factory | Identified exit to Factory 7305 | -7/Factory | Entered Lower Caves 7610 | -7/Lower Caves | Build established: Scavenger-Skirmisher 8050 | -7/Lower Caves | Attracted the attention of an 0b10 checkpoint 8057 | -7/Lower Caves | Build established: Scavenger-Tank 8783 | -7/Lower Caves | Discovered new exit (range 8) 8904 | -7/Lower Caves | Entered another Lower Caves area 9028 | -7/Lower Caves | Discovered exit to Factory (range 14) 9209 | -7/Lower Caves | Encountered a Warlord checkpoint 9359 | -7/Lower Caves | Learned Factory emergency access door positions 9445 | -7/Lower Caves | Learned Factory emergency access door positions 9480 | -7/Lower Caves | Ambushed by wild Derelicts 9827 | -7/Lower Caves | Attracted the attention of an 0b10 base 9828 | -7/Lower Caves | Crushed by falling debris 9830 | -7/Lower Caves | Learned Research garrison access intel 9830 | -7/Lower Caves | Learned Research terminal intel 9830 | -7/Lower Caves | Learned location of Extension (-5) 9879 | -7/Lower Caves | Destroyed 7 combat bots 9917 | -7/Lower Caves | Lost 7 parts (1p2n2u2w) 10223 | -7/Lower Caves | Build established: Mutant 10226 | -7/Lower Caves | Discovered new exit (range 5) 10236 | -7/Lower Caves | Ambushed by research squad 10236 | -7/Lower Caves | Entered Data Miner 10236 | -7/Data Miner | Discovered new exit (range 6) 10262 | -7/Data Miner | Met Data Miner 10286 | -7/Data Miner | Learned location of Section 7 (-3) 10286 | -7/Data Miner | Acquired the access code to Warlord's prototype stash 10312 | -7/Data Miner | Received God Mode back door access code from Data Miner 10342 | -7/Data Miner | Entered Proximity Caves 10986 | -6/Proximity Caves | Escorted by Enhanced Grunt 11015 | -6/Proximity Caves | Lost 3 parts (1p2u) 11279 | -6/Proximity Caves | Attracted the attention of an 0b10 outpost 11356 | -6/Proximity Caves | Destroyed 10 combat bots 11380 | -6/Proximity Caves | Lost 6 parts (1p1n2u2w) 11600 | -6/Proximity Caves | Build established: Gunner 11807 | -6/Proximity Caves | System corruption reached 10% 11862 | -6/Proximity Caves | Lost 3 parts (1p1u1w) 11912 | -6/Proximity Caves | Build established: Mutant 12378 | -6/Proximity Caves | Entered Factory 12378 | -6/Factory | Evolved 2 slots: Propulsion x1, Utility x1 12486 | -6/Factory | Discovered new exit (range 16) 12663 | -6/Factory | Build established: Scavenger-Tank 13129 | -6/Factory | Discovered new exit (range 5) 13163 | -6/Factory | Identified exit to Lower Caves 13241 | -6/Factory | Lost 5 parts (1p1n1u2w) 13685 | -6/Factory | Cargo convoy interrupted 13685 | -6/Factory | Entered Lower Caves 13708 | -6/Lower Caves | Learned Factory interactive machine intel 13712 | -6/Lower Caves | Build established: Scavenger-Gunner 13882 | -6/Lower Caves | Attracted the attention of an 0b10 base 13950 | -6/Lower Caves | Lost 8 parts (1p3n3u1w) 14002 | -6/Lower Caves | Learned Factory garrison access intel 14002 | -6/Lower Caves | Learned 6 Upper Caves zone layouts 14002 | -6/Lower Caves | Learned location of 2 exits from Upper Caves 14369 | -6/Lower Caves | Build established: Scavenger-Tank 14713 | -6/Lower Caves | Build established: Scavenger-Gunner 14953 | -6/Lower Caves | Learned 4 Factory zone layouts 14989 | -6/Lower Caves | Discovered new exit (range 7) 15023 | -6/Lower Caves | Attracted the attention of an 0b10 checkpoint 15063 | -6/Lower Caves | Entered another Lower Caves area 15082 | -6/Lower Caves | Attracted the attention of an 0b10 checkpoint 15100 | -6/Lower Caves | Discovered new exit (range 14) 15996 | -6/Lower Caves | Found Prototype Device 15996 | -6/Lower Caves | Identified Heart of Steel 16034 | -6/Lower Caves | Murdered Warlord Statue 16263 | -6/Lower Caves | Spotted B-75 Beast 16342 | -6/Lower Caves | Discovered new exit (range 12) 16363 | -6/Lower Caves | Entered Zion 16434 | -6/Zion | System corruption cleaned by Quarantine Array 16494 | -6/Zion | Gained Derelict followers 16566 | -6/Zion | Discovered new exit (range 15) 16630 | -6/Zion | Found CR-A16's Pointy Stick 17409 | -6/Zion | Learned Factory emergency access door positions 17579 | -6/Zion | Build established: Derelict-Mutant 18079 | -6/Zion | Discovered new exit (range 5) 18081 | -6/Zion | Saw the warning signs outside the Deep Caves entrance 18182 | -6/Zion | Entered Deep Caves 18182 | -6/Deep Caves | Accompanied by 3 allies 18320 | -6/Deep Caves | Build established: Derelict-Gunner 18540 | -6/Deep Caves | Z-Facility disabled 18547 | -6/Deep Caves | Attacked by Z-Imprinter 18611 | -6/Deep Caves | Lost 3 allies 18644 | -6/Deep Caves | Lost 7 parts (1p2n4u) 18772 | -6/Deep Caves | Found Prototype Protection 18772 | -6/Deep Caves | Identified Zio. Weapon Casing 19174 | -6/Deep Caves | Build established: Scavenger-Mutant 19199 | -6/Deep Caves | Core integrity fell below 50% 19223 | -6/Deep Caves | Core integrity fell below 20% 19241 | -6/Deep Caves | Lost 5 parts (2n3u) 19262 | -6/Deep Caves | System corruption reached 10% 19266 | -6/Deep Caves | Found Zio. Weapon Casing 19269 | -6/Deep Caves | Found Zio. Weapon Casing 19404 | -6/Deep Caves | Spotted AG-73770 19443 | -6/Deep Caves | Destroyed by AG-73770 with Assembled Focal Cannon Last Messages --------------- 19361_ System corrupted: Heat flow error (+219). 19384_ System corrupted: Matter fused (-10). 19400_ PIANNKK2KJXDBQ 19407_ Imp. Heat Sink fried. 19407_ 9N-OFF(g) destroyed. 19410_ Acquired 10 matter. 19414_ AG-73770: "DSI9AT1D G8OHIBQ29FWG 26R186 QD12WHW8W33 TDK1 81FTS" 19435_ AG-73770 suffers critical hit (Smash). 19435_ Destroyed GOLEM Unit. 19435_ AG-73770 system corrupted by crushing effect. 19436_ Hover Unit destroyed. 19438_ AG-73770 suffers critical hit (Smash). 19438_ AG-73770 knocked back. 19440_ Cesium-ion Thruster destroyed. 19442_ AG-73770 knocked back. Map ----- +----------------------------------------------------+ | ????????????????????????# ????????# #????? ##? | | ????????????????????? # ????????# #????? #? | | ?????????????????? #???????# #????? #? | | ???????????????? * #??????# #????? #? | | ????????????? ! ??????# #????? #? | | ??????????? #??????# ##????# #? | | ?????????? ##?????# ##???# ## | | ????????? * * * #?????# ##?## # | | ????????# M! g b #??#### ### | | ????????# #?## | | ????????# !!!! #?# | | ?????????" ! M ### | | ?????????" h * ## | | ?????????" b ! ## # | | ?????????" ** [ ## #? | | ????????"" [* [ ## #? | | ????????# s * #?# #? | | ????????" #?# ## ## #? | | ????????" * * ### ## ## ## | | ????????" [ b ## | | ????????""" ###### | | ????????" % #????##### | | ????????"" ######????????# | | ????????" G #?????????????# | | ????????"" ##?????????????## | | ????????" #@; #???????????????## | | ????????" #### ## ;# ##????????????????## | | ????????""" ?????# ?# ####??????????????????## | | ?????????" ???????#??# #??????????????????????# | | ?????????#????????????###??????????????????????? | | | | | | | | | | | | | | | | | | | | | | | | | | | | | | | | | | | | | | | | | +----------------------------------------------------+ Best States ------------- Heat Dissipation 77 Energy Generation 27 Energy Capacity 700 Matter Stores 300 Matter Capacity 300 Sight Range 22 Robot Scan Range 15 Terrain Scan Range 20 Terrain Scan Density 10 Jamming Range 14 Corruption Containment 8 Armor Coverage 800 Resistance: KI 30 Resistance: TH 10 Resistance: EM 15 Propulsion Shielding 66 Weapon Shielding 100 Weapon Cycling 15 Melee Speed Boost 20 Phase Shifting 5 Evasion (%) 55 Recoil Reduction 4 Kinecelleration 30 Salvage Targeting 5 Offensive Hacking 10 Defensive Hacking 14 Item Schematics ----------------- Combat Drone Bay | -7/Data Miner | Free Lgt. Regenerative Plating | -7/Data Miner | Free Cld. Cesium-ion Thruster | -7/Data Miner | Free Thermal Defense Suite | -7/Data Miner | Free Ion Burst Cannon | -7/Data Miner | Free Field Propulsion Drive | -7/Data Miner | Free Imp. Recalibrator | -7/Data Miner | Free Hyp. Gauss Cannon | -7/Data Miner | Free Magnetic Acceleration Cannon | -7/Data Miner | Free Lrn. Missile Launcher | -6/Factory | Hacked Thermal Shield | -6/Zion | Archive Wave Gun | -6/Zion | Archive Flexi-carbon Leg | -6/Zion | Archive Imp. Shock Absorption System | -6/Zion | Archive Imp. Heavy Armor Plating | -6/Zion | Archive Dispersion Rifle | -6/Zion | Archive Remote Force Field | -6/Zion | Archive Arc Thrower | -6/Zion | Archive 0b10 Decoder Chip [Generic] | -6/Zion | Archive Mak. Trap Scanner | -6/Zion | Archive Matter Neutralizer | -6/Zion | Archive Robot Schematics ------------------ H-66 Slayer | -7/Data Miner | Free I-36 Angel | -7/Data Miner | Free W-25 Informer | -7/Data Miner | Free G-50 Soldier | -7/Data Miner | Free L-41 Fighter | -7/Data Miner | Free R-10 Processor | -7/Data Miner | Free T-07 Excavator | -6/Zion | Archive A-02 Transporter | -6/Zion | Archive L-61 Swordsman | -6/Zion | Archive Fabricated ------------ Nothing Alien Tech Used ----------------- None Achievements -------------- None Challenges ------------ None Game ------ Seed TeslaLatentExoskeleton Manual? 0 Play Time 02:45:30 Cumulative 187.4 hours Start 2024.04.23 @ 20:18:04 End 2024.04.24 @ 04:16:05 Sessions 4 Manual Loads 0 Difficulty Rogue Special Mode None Game No. 76 Rogue 74 Adventurer 2 Explorer 0 Win Type - Total 5 Types 4/0/0/1/0/0/0/0/0 Lore% 64 Gallery% 76 Achievement% 63 Wizard Run 0 Options --------- Layout 0 ASCII 0 Keyboard 0 Movement Numpad Keybinds 0 Fullscreen 2 Font 24/Smallcaps Map View 76x50 Zoom Use 0% Tactical HUD 1 Map Filters NONE Filters NONE Steam 1 RUN: 816c5672-e539-4703-bd3a-9a19d3725fce